[Event "Titled Tuesday Blitz November 14 Early 2023"]
[White "VOneChess"]
[Black "FREDERICKtheMATE"]
[WhiteElo "2328"]
[BlackElo "2563"]
[Result "0-1"]
[Round "3"]
[TimeControl "180+1"]
[Date "2023.11.14"]
[WhiteClock "0:00:06"]
[BlackClock "0:01:24"]
[Board "151"]

1. e4 {[%clk 0:02:58]}  c5 {[%clk 0:02:58]} 2. Nf3 {[%clk 0:02:57]}  Nc6 {[%clk 0:02:58]} 3. d4 {[%clk 0:02:54]}  cxd4 {[%clk 0:02:59]} 4. Nxd4 {[%clk 0:02:55]}  Nf6 {[%clk 0:03:00]} 5. Nc3 {[%clk 0:02:55]}  e5 {[%clk 0:03:00]} 6. Ndb5 {[%clk 0:02:56]}  d6 {[%clk 0:03:00]} 7. Bg5 {[%clk 0:02:56]}  a6 {[%clk 0:03:00]} 8. Na3 {[%clk 0:02:56]}  b5 {[%clk 0:03:01]} 9. Nd5 {[%clk 0:02:55]}  Be7 {[%clk 0:03:01]} 10. Bxf6 {[%clk 0:02:56]}  Bxf6 {[%clk 0:03:02]} 11. c3 {[%clk 0:02:56]}  O-O {[%clk 0:03:00]} 12. Nc2 {[%clk 0:02:56]}  Rb8 {[%clk 0:03:00]} 13. Bd3 {[%clk 0:02:54]}  Be6 {[%clk 0:02:59]} 14. Nce3 {[%clk 0:02:53]}  g6 {[%clk 0:02:57]} 15. h4 {[%clk 0:02:48]}  Bxh4 {[%clk 0:02:55]} 16. Nf5 {[%clk 0:02:34]}  Bg5 {[%clk 0:02:48]} 17. Nh6+ {[%clk 0:01:43]}  Kg7 {[%clk 0:02:46]} 18. Ng4 {[%clk 0:01:43]}  f5 {[%clk 0:02:39]} 19. Nge3 {[%clk 0:01:24]}  f4 {[%clk 0:02:36]} 20. Ng4 {[%clk 0:01:19]}  h5 {[%clk 0:02:32]} 21. Nh2 {[%clk 0:01:14]}  Ne7 {[%clk 0:02:32]} 22. Nf3 {[%clk 0:01:10]}  Bh6 {[%clk 0:02:31]} 23. Nxe7 {[%clk 0:00:54]}  Qxe7 {[%clk 0:02:31]} 24. Nh4 {[%clk 0:00:55]}  Bf7 {[%clk 0:02:28]} 25. Qe2 {[%clk 0:00:44]}  Bg5 {[%clk 0:02:24]} 26. g3 {[%clk 0:00:43]}  fxg3 {[%clk 0:02:21]} 27. fxg3 {[%clk 0:00:41]}  Be8 {[%clk 0:02:17]} 28. Kd1 {[%clk 0:00:28]}  Rf6 {[%clk 0:02:07]} 29. Kc2 {[%clk 0:00:26]}  Bd7 {[%clk 0:02:03]} 30. Raf1 {[%clk 0:00:22]}  Bg4 {[%clk 0:02:01]} 31. Qe1 {[%clk 0:00:13]}  Rbf8 {[%clk 0:01:59]} 32. Rxf6 {[%clk 0:00:12]}  Qxf6 {[%clk 0:02:00]} 33. Rh2 {[%clk 0:00:11]}  Qe6 {[%clk 0:01:47]} 34. Kb1 {[%clk 0:00:10]}  Qf6 {[%clk 0:01:43]} 35. Bc2 {[%clk 0:00:10]}  Qf1 {[%clk 0:01:41]} 36. Rh1 {[%clk 0:00:09]}  Qxe1+ {[%clk 0:01:40]} 37. Rxe1 {[%clk 0:00:10]}  Rf2 {[%clk 0:01:40]} 38. Rg1 {[%clk 0:00:09]}  Bxh4 {[%clk 0:01:36]} 39. gxh4 {[%clk 0:00:08]}  Rh2 {[%clk 0:01:36]} 40. Bd1 {[%clk 0:00:07]}  Rxh4 {[%clk 0:01:36]} 41. Bxg4 {[%clk 0:00:04]}  Rxg4 {[%clk 0:01:36]} 42. Rd1 {[%clk 0:00:05]}  h4 {[%clk 0:01:34]} 43. Rxd6 {[%clk 0:00:05]}  Rg1+ {[%clk 0:01:31]} 44. Kc2 {[%clk 0:00:05]}  h3 {[%clk 0:01:31]} 45. Rd7+ {[%clk 0:00:02]}  Kh6 {[%clk 0:01:31]} 46. Rd3 {[%clk 0:00:03]}  Rg2+ {[%clk 0:01:27]} 47. Kb3 {[%clk 0:00:03]}  h2 {[%clk 0:01:27]} 48. Rh3+ {[%clk 0:00:04]}  Kg5 {[%clk 0:01:27]} 49. c4 {[%clk 0:00:02]}  bxc4+ {[%clk 0:01:26]} 50. Kxc4 {[%clk 0:00:03]}  Rxb2 {[%clk 0:01:26]} 51. Kd5 {[%clk 0:00:03]}  Kf4 {[%clk 0:01:25]} 52. Rh4+ {[%clk 0:00:01]}  Kg3 {[%clk 0:01:23]} 53. Rh8 {[%clk 0:00:02]}  Rb1 {[%clk 0:01:21]} 54. Kxe5 {[%clk 0:00:02]}  h1=Q {[%clk 0:01:21]} 55. Rxh1 {[%clk 0:00:03]}  Rxh1 {[%clk 0:01:21]} 56. Kf6 {[%clk 0:00:03]}  Re1 {[%clk 0:01:21]} 57. e5 {[%clk 0:00:04]}  Kf4 {[%clk 0:01:21]} 58. e6 {[%clk 0:00:03]}  g5 {[%clk 0:01:22]} 59. e7 {[%clk 0:00:02]}  g4 {[%clk 0:01:22]} 60. Kf7 {[%clk 0:00:03]}  g3 {[%clk 0:01:23]} 61. e8=Q {[%clk 0:00:03]}  Rxe8 {[%clk 0:01:23]} 62. Kxe8 {[%clk 0:00:04]}  g2 {[%clk 0:01:23]} 63. Kd7 {[%clk 0:00:05]}  g1=Q {[%clk 0:01:23]} 64. Kc6 {[%clk 0:00:05]}  Qb1 {[%clk 0:01:21]} 65. a4 {[%clk 0:00:05]}  Qb4 {[%clk 0:01:21]} 66. Kc7 {[%clk 0:00:03]}  Qxa4 {[%clk 0:01:21]} 67. Kb7 {[%clk 0:00:04]}  Qb5+ {[%clk 0:01:22]} 68. Ka7 {[%clk 0:00:04]}  Ke5 {[%clk 0:01:22]} 69. Ka8 {[%clk 0:00:04]}  Kd6 {[%clk 0:01:23]} 70. Ka7 {[%clk 0:00:05]}  Kc7 {[%clk 0:01:23]} 71. Ka8 {[%clk 0:00:06]}  Qb7# {[%clk 0:01:24]} 0-1


[Site "https://www.chess.com"]

[Event "Titled Tuesday Blitz November 14 Early 2023"]
[White "Ardila, Oscar Humberto"]
[Black "Derjabin, Ilja"]
[WhiteFideId "4404742"]
[BlackFideId "14104768"]
[WhiteElo "2319"]
[BlackElo "2562"]
[Result "0-1"]
[Round "3"]
[TimeControl "180+1"]
[Date "2023.11.14"]
[WhiteClock "0:00:00"]
[BlackClock "0:00:27"]
[Board "152"]

1. d4 {[%clk 0:03:00]}  Nf6 {[%clk 0:02:59]} 2. c4 {[%clk 0:03:00]}  c5 {[%clk 0:03:00]} 3. d5 {[%clk 0:03:00]}  b5 {[%clk 0:03:00]} 4. cxb5 {[%clk 0:03:00]}  a6 {[%clk 0:03:01]} 5. bxa6 {[%clk 0:03:00]}  Bxa6 {[%clk 0:03:02]} 6. Nc3 {[%clk 0:03:01]}  d6 {[%clk 0:03:02]} 7. e4 {[%clk 0:03:01]}  Bxf1 {[%clk 0:03:01]} 8. Kxf1 {[%clk 0:03:02]}  g6 {[%clk 0:03:01]} 9. Nf3 {[%clk 0:03:03]}  Qc8 {[%clk 0:03:02]} 10. h3 {[%clk 0:02:58]}  Qa6+ {[%clk 0:03:01]} 11. Qe2 {[%clk 0:02:57]}  Bg7 {[%clk 0:03:02]} 12. a4 {[%clk 0:02:34]}  O-O {[%clk 0:02:59]} 13. Bf4 {[%clk 0:02:12]}  Nbd7 {[%clk 0:02:50]} 14. Qxa6 {[%clk 0:02:08]}  Rxa6 {[%clk 0:02:50]} 15. Ke2 {[%clk 0:02:08]}  Rb8 {[%clk 0:02:46]} 16. Ra2 {[%clk 0:02:03]}  Rb4 {[%clk 0:02:45]} 17. Kd3 {[%clk 0:01:31]}  c4+ {[%clk 0:02:21]} 18. Kc2 {[%clk 0:01:26]}  Nc5 {[%clk 0:02:22]} 19. Bd2 {[%clk 0:01:16]}  Rb7 {[%clk 0:02:00]} 20. Re1 {[%clk 0:01:12]}  e6 {[%clk 0:02:00]} 21. dxe6 {[%clk 0:01:04]}  fxe6 {[%clk 0:02:01]} 22. e5 {[%clk 0:01:01]}  dxe5 {[%clk 0:01:40]} 23. Nxe5 {[%clk 0:01:01]}  Nd5 {[%clk 0:01:41]} 24. Nxd5 {[%clk 0:00:47]}  exd5 {[%clk 0:01:42]} 25. Bc3 {[%clk 0:00:47]}  Rxa4 {[%clk 0:01:33]} 26. Rxa4 {[%clk 0:00:38]}  Nxa4 {[%clk 0:01:34]} 27. f4 {[%clk 0:00:34]}  Nxc3 {[%clk 0:01:33]} 28. bxc3 {[%clk 0:00:34]}  Ra7 {[%clk 0:01:26]} 29. Kb2 {[%clk 0:00:32]}  Re7 {[%clk 0:01:10]} 30. Kc2 {[%clk 0:00:25]}  Bxe5 {[%clk 0:00:46]} 31. fxe5 {[%clk 0:00:24]}  Kf7 {[%clk 0:00:46]} 32. Kd2 {[%clk 0:00:19]}  Ke6 {[%clk 0:00:46]} 33. Re2 {[%clk 0:00:16]}  Rf7 {[%clk 0:00:45]} 34. Ke3 {[%clk 0:00:13]}  Kxe5 {[%clk 0:00:43]} 35. Ra2 {[%clk 0:00:13]}  Rb7 {[%clk 0:00:36]} 36. Ra8 {[%clk 0:00:11]}  Rb2 {[%clk 0:00:35]} 37. Re8+ {[%clk 0:00:10]}  Kd6 {[%clk 0:00:35]} 38. g3 {[%clk 0:00:10]}  Rg2 {[%clk 0:00:34]} 39. Kf3 {[%clk 0:00:03]}  Rd2 {[%clk 0:00:34]} 40. Re3 {[%clk 0:00:03]}  Rc2 {[%clk 0:00:32]} 41. Kf4 {[%clk 0:00:03]}  Kc5 {[%clk 0:00:31]} 42. Ke5 {[%clk 0:00:03]}  Rd2 {[%clk 0:00:31]} 43. h4 {[%clk 0:00:03]}  Rd3 {[%clk 0:00:32]} 44. Re2 {[%clk 0:00:02]}  Rxc3 {[%clk 0:00:32]} 45. g4 {[%clk 0:00:02]}  Rd3 {[%clk 0:00:29]} 46. g5 {[%clk 0:00:03]}  c3 {[%clk 0:00:29]} 47. h5 {[%clk 0:00:02]}  gxh5 {[%clk 0:00:29]} 48. Kf6 {[%clk 0:00:02]}  Rd2 {[%clk 0:00:28]} 49. Re3 {[%clk 0:00:02]}  d4 {[%clk 0:00:28]} 50. Re7 {[%clk 0:00:03]}  c2 {[%clk 0:00:28]} 51. Rxh7 {[%clk 0:00:00]}  Kd6 {[%clk 0:00:27]} 0-1


[Site "https://www.chess.com"]

[Event "Titled Tuesday Blitz November 14 Early 2023"]
[White "Andrej2004"]
[Black "Bobomurodova, Maftuna"]
[BlackFideId "14207400"]
[WhiteElo "2555"]
[BlackElo "2319"]
[Result "0-1"]
[Round "3"]
[TimeControl "180+1"]
[Date "2023.11.14"]
[WhiteClock "0:00:20"]
[BlackClock "0:00:21"]
[Board "154"]

1. Nf3 {[%clk 0:03:00]}  Nf6 {[%clk 0:02:59]} 2. b3 {[%clk 0:03:00]}  d5 {[%clk 0:02:55]} 3. Bb2 {[%clk 0:03:01]}  e6 {[%clk 0:02:55]} 4. g3 {[%clk 0:03:01]}  b6 {[%clk 0:02:55]} 5. Bg2 {[%clk 0:03:02]}  Bb7 {[%clk 0:02:55]} 6. O-O {[%clk 0:03:03]}  Be7 {[%clk 0:02:55]} 7. d4 {[%clk 0:03:02]}  O-O {[%clk 0:02:55]} 8. Ne5 {[%clk 0:03:02]}  c5 {[%clk 0:02:51]} 9. c4 {[%clk 0:03:02]}  Nc6 {[%clk 0:02:47]} 10. dxc5 {[%clk 0:02:59]}  Nxe5 {[%clk 0:02:44]} 11. Bxe5 {[%clk 0:02:56]}  Bxc5 {[%clk 0:02:44]} 12. Nc3 {[%clk 0:02:52]}  Qe7 {[%clk 0:01:57]} 13. Bxf6 {[%clk 0:01:52]}  Qxf6 {[%clk 0:01:54]} 14. Qc2 {[%clk 0:01:53]}  Bd4 {[%clk 0:01:50]} 15. Rac1 {[%clk 0:01:52]}  Rac8 {[%clk 0:01:47]} 16. e3 {[%clk 0:01:48]}  Bxc3 {[%clk 0:01:40]} 17. Qxc3 {[%clk 0:01:48]}  Qxc3 {[%clk 0:01:37]} 18. Rxc3 {[%clk 0:01:49]}  Ba6 {[%clk 0:01:36]} 19. Rfc1 {[%clk 0:01:47]}  dxc4 {[%clk 0:01:36]} 20. Bf1 {[%clk 0:01:44]}  Rc5 {[%clk 0:01:33]} 21. bxc4 {[%clk 0:01:25]}  Rfc8 {[%clk 0:01:32]} 22. f4 {[%clk 0:01:21]}  Kf8 {[%clk 0:01:27]} 23. Ra3 {[%clk 0:01:06]}  Bxc4 {[%clk 0:01:24]} 24. Rxa7 {[%clk 0:00:55]}  Bd5 {[%clk 0:01:18]} 25. Rb1 {[%clk 0:00:48]}  Rc1 {[%clk 0:01:14]} 26. Rxc1 {[%clk 0:00:44]}  Rxc1 {[%clk 0:01:14]} 27. Kf2 {[%clk 0:00:33]}  Rc2+ {[%clk 0:01:12]} 28. Ke1 {[%clk 0:00:31]}  Rxa2 {[%clk 0:01:10]} 29. Rxa2 {[%clk 0:00:31]}  Bxa2 {[%clk 0:01:08]} 30. Kd2 {[%clk 0:00:32]}  Ke7 {[%clk 0:01:08]} 31. Kc3 {[%clk 0:00:33]}  Bd5 {[%clk 0:01:03]} 32. Kd4 {[%clk 0:00:32]}  Bc6 {[%clk 0:01:02]} 33. e4 {[%clk 0:00:32]}  Kd6 {[%clk 0:01:01]} 34. e5+ {[%clk 0:00:32]}  Kc7 {[%clk 0:01:01]} 35. Kc4 {[%clk 0:00:33]}  Kb7 {[%clk 0:00:55]} 36. Kb4 {[%clk 0:00:33]}  Bf3 {[%clk 0:00:50]} 37. Bd3 {[%clk 0:00:31]}  h6 {[%clk 0:00:48]} 38. h4 {[%clk 0:00:30]}  Kc6 {[%clk 0:00:48]} 39. Bb5+ {[%clk 0:00:31]}  Kd5 {[%clk 0:00:47]} 40. Be8 {[%clk 0:00:28]}  f6 {[%clk 0:00:47]} 41. exf6 {[%clk 0:00:27]}  gxf6 {[%clk 0:00:47]} 42. Kb5 {[%clk 0:00:27]}  Ke4 {[%clk 0:00:31]} 43. Kxb6 {[%clk 0:00:20]}  Bg4 {[%clk 0:00:28]} 44. Bc6+ {[%clk 0:00:19]}  Ke3 {[%clk 0:00:28]} 45. Kc7 {[%clk 0:00:19]}  Kf2 {[%clk 0:00:28]} 46. Kd6 {[%clk 0:00:20]}  Kxg3 {[%clk 0:00:28]} 47. Ke7 {[%clk 0:00:21]}  Kxf4 {[%clk 0:00:26]} 48. Kxf6 {[%clk 0:00:21]}  e5 {[%clk 0:00:26]} 49. h5 {[%clk 0:00:21]}  Bxh5 {[%clk 0:00:21]} 50. Kg7 {[%clk 0:00:22]}  Kg5 {[%clk 0:00:21]} 51. Be4 {[%clk 0:00:21]}  Bg4 {[%clk 0:00:20]} 52. Bd3 {[%clk 0:00:20]}  h5 {[%clk 0:00:21]} 53. Be4 {[%clk 0:00:20]}  h4 {[%clk 0:00:21]} 0-1


[Site "https://www.chess.com"]

[Event "Titled Tuesday Blitz November 14 Early 2023"]
[White "Bilan, Danila"]
[Black "Pumpkin_in_moonlight"]
[WhiteFideId "24161918"]
[WhiteElo "2555"]
[BlackElo "2316"]
[Result "1-0"]
[Round "3"]
[TimeControl "180+1"]
[Date "2023.11.14"]
[WhiteClock "0:00:06"]
[BlackClock "0:00:02"]
[Board "155"]

1. d4 {[%clk 0:03:00]}  d5 {[%clk 0:02:58]} 2. Nf3 {[%clk 0:03:01]}  Nf6 {[%clk 0:02:56]} 3. c4 {[%clk 0:03:01]}  e6 {[%clk 0:02:46]} 4. Nc3 {[%clk 0:03:01]}  Bb4 {[%clk 0:02:42]} 5. Qb3 {[%clk 0:03:01]}  Nc6 {[%clk 0:02:35]} 6. Bg5 {[%clk 0:02:53]}  O-O {[%clk 0:02:11]} 7. e3 {[%clk 0:02:51]}  Re8 {[%clk 0:01:56]} 8. Ne5 {[%clk 0:02:44]}  h6 {[%clk 0:01:41]} 9. Nxc6 {[%clk 0:02:40]}  Bxc3+ {[%clk 0:01:40]} 10. bxc3 {[%clk 0:02:26]}  bxc6 {[%clk 0:01:39]} 11. Bf4 {[%clk 0:02:05]}  Ba6 {[%clk 0:01:38]} 12. Qa4 {[%clk 0:01:47]}  Bxc4 {[%clk 0:01:35]} 13. Bxc4 {[%clk 0:01:46]}  dxc4 {[%clk 0:01:35]} 14. Qxc4 {[%clk 0:01:43]}  Qd5 {[%clk 0:01:31]} 15. Qxd5 {[%clk 0:01:38]}  Nxd5 {[%clk 0:01:03]} 16. Bg3 {[%clk 0:01:31]}  Nxc3 {[%clk 0:00:59]} 17. Bxc7 {[%clk 0:01:29]}  Rec8 {[%clk 0:00:56]} 18. Ba5 {[%clk 0:01:18]}  Nd5 {[%clk 0:00:51]} 19. e4 {[%clk 0:00:52]}  Nf6 {[%clk 0:00:50]} 20. f3 {[%clk 0:00:47]}  c5 {[%clk 0:00:50]} 21. Bc3 {[%clk 0:00:38]}  cxd4 {[%clk 0:00:40]} 22. Bxd4 {[%clk 0:00:39]}  Rc4 {[%clk 0:00:37]} 23. Be3 {[%clk 0:00:24]}  a5 {[%clk 0:00:28]} 24. O-O {[%clk 0:00:19]}  a4 {[%clk 0:00:28]} 25. Rfc1 {[%clk 0:00:15]}  Rac8 {[%clk 0:00:28]} 26. Rxc4 {[%clk 0:00:15]}  Rxc4 {[%clk 0:00:28]} 27. Rc1 {[%clk 0:00:16]}  Rb4 {[%clk 0:00:24]} 28. Rc2 {[%clk 0:00:13]}  Nd7 {[%clk 0:00:19]} 29. Kf2 {[%clk 0:00:09]}  e5 {[%clk 0:00:18]} 30. Ke2 {[%clk 0:00:09]}  f6 {[%clk 0:00:17]} 31. Bd2 {[%clk 0:00:06]}  Rd4 {[%clk 0:00:15]} 32. Bc3 {[%clk 0:00:06]}  Rc4 {[%clk 0:00:15]} 33. Kd3 {[%clk 0:00:06]}  Rc6 {[%clk 0:00:14]} 34. Bd2 {[%clk 0:00:06]}  Rd6+ {[%clk 0:00:11]} 35. Kc4 {[%clk 0:00:05]}  Rc6+ {[%clk 0:00:10]} 36. Kd3 {[%clk 0:00:06]}  Rd6+ {[%clk 0:00:09]} 37. Ke2 {[%clk 0:00:06]}  Kf7 {[%clk 0:00:09]} 38. Rc7 {[%clk 0:00:06]}  Ke6 {[%clk 0:00:08]} 39. Ra7 {[%clk 0:00:06]}  Rd4 {[%clk 0:00:08]} 40. Ra6+ {[%clk 0:00:06]}  Kf7 {[%clk 0:00:07]} 41. Bc3 {[%clk 0:00:06]}  Rc4 {[%clk 0:00:07]} 42. Kd3 {[%clk 0:00:06]}  Rc7 {[%clk 0:00:06]} 43. Bb4 {[%clk 0:00:05]}  Nc5+ {[%clk 0:00:04]} 44. Bxc5 {[%clk 0:00:04]}  Rxc5 {[%clk 0:00:05]} 45. Ra7+ {[%clk 0:00:04]}  Kg6 {[%clk 0:00:04]} 46. Rxa4 {[%clk 0:00:05]}  Rc1 {[%clk 0:00:05]} 47. Rc4 {[%clk 0:00:04]}  Ra1 {[%clk 0:00:04]} 48. Rc2 {[%clk 0:00:04]}  Rh1 {[%clk 0:00:04]} 49. h3 {[%clk 0:00:04]}  Ra1 {[%clk 0:00:03]} 50. Kc4 {[%clk 0:00:04]}  h5 {[%clk 0:00:03]} 51. Kb5 {[%clk 0:00:04]}  Kg5 {[%clk 0:00:03]} 52. a4 {[%clk 0:00:04]}  g6 {[%clk 0:00:03]} 53. a5 {[%clk 0:00:05]}  f5 {[%clk 0:00:03]} 54. a6 {[%clk 0:00:04]}  fxe4 {[%clk 0:00:03]} 55. fxe4 {[%clk 0:00:04]}  Kf4 {[%clk 0:00:03]} 56. Re2 {[%clk 0:00:05]}  Rb1+ {[%clk 0:00:02]} 57. Kc6 {[%clk 0:00:04]}  Rc1+ {[%clk 0:00:03]} 58. Kb7 {[%clk 0:00:05]}  Rb1+ {[%clk 0:00:03]} 59. Ka7 {[%clk 0:00:05]}  Ra1 {[%clk 0:00:03]} 60. Kb8 {[%clk 0:00:05]}  Rb1+ {[%clk 0:00:03]} 61. Ka8 {[%clk 0:00:05]}  Ra1 {[%clk 0:00:03]} 62. Ka7 {[%clk 0:00:05]}  Kg3 {[%clk 0:00:03]} 63. Rb2 {[%clk 0:00:04]}  g5 {[%clk 0:00:03]} 64. Kb7 {[%clk 0:00:03]}  g4 {[%clk 0:00:03]} 65. hxg4 {[%clk 0:00:03]}  hxg4 {[%clk 0:00:03]} 66. a7 {[%clk 0:00:04]}  Kf4 {[%clk 0:00:03]} 67. Rb4 {[%clk 0:00:04]}  Ra2 {[%clk 0:00:03]} 68. a8=Q {[%clk 0:00:04]}  Rxa8 {[%clk 0:00:03]} 69. Kxa8 {[%clk 0:00:05]}  Kg3 {[%clk 0:00:03]} 70. Rb5 {[%clk 0:00:05]}  Kxg2 {[%clk 0:00:03]} 71. Rxe5 {[%clk 0:00:06]}  Kf3 {[%clk 0:00:04]} 72. Rg5 {[%clk 0:00:06]}  Kf4 {[%clk 0:00:04]} 73. Rg8 {[%clk 0:00:06]}  Kf3 {[%clk 0:00:02]} 74. e5 {[%clk 0:00:06]} 1-0


[Site "https://www.chess.com"]

[Event "Titled Tuesday Blitz November 14 Early 2023"]
[White "Osmonbekov, Talaibek"]
[Black "LouieKov2022"]
[WhiteFideId "2017253"]
[WhiteElo "2311"]
[BlackElo "2555"]
[Result "1-0"]
[Round "3"]
[TimeControl "180+1"]
[Date "2023.11.14"]
[WhiteClock "0:01:14"]
[BlackClock "0:01:51"]
[Board "156"]

1. d4 {[%clk 0:03:00]}  d5 {[%clk 0:02:58]} 2. Nc3 {[%clk 0:03:01]}  Nf6 {[%clk 0:02:54]} 3. Bf4 {[%clk 0:03:01]}  Bf5 {[%clk 0:02:43]} 4. Nb5 {[%clk 0:02:59]}  Na6 {[%clk 0:02:42]} 5. e3 {[%clk 0:02:59]}  e6 {[%clk 0:02:41]} 6. a3 {[%clk 0:02:52]}  c6 {[%clk 0:02:41]} 7. Nc3 {[%clk 0:02:52]}  Nc7 {[%clk 0:02:39]} 8. Nf3 {[%clk 0:02:52]}  Bd6 {[%clk 0:02:40]} 9. Ne5 {[%clk 0:02:51]}  O-O {[%clk 0:02:37]} 10. g4 {[%clk 0:02:50]}  Bg6 {[%clk 0:02:33]} 11. h4 {[%clk 0:02:48]}  h5 {[%clk 0:02:28]} 12. g5 {[%clk 0:02:38]}  Bxe5 {[%clk 0:02:21]} 13. Bxe5 {[%clk 0:02:20]}  Ne4 {[%clk 0:02:18]} 14. Nxe4 {[%clk 0:01:47]}  Bxe4 {[%clk 0:02:19]} 15. Rg1 {[%clk 0:01:44]}  g6 {[%clk 0:02:16]} 16. Be2 {[%clk 0:01:29]}  Ne8 {[%clk 0:02:08]} 17. Bxh5 {[%clk 0:01:24]}  gxh5 {[%clk 0:02:09]} 18. Qxh5 {[%clk 0:01:24]}  Bh7 {[%clk 0:02:07]} 19. g6 {[%clk 0:01:17]}  fxg6 {[%clk 0:01:55]} 20. Rxg6+ {[%clk 0:01:16]}  Kf7 {[%clk 0:01:51]} 21. Rg7# {[%clk 0:01:14]} 1-0


[Site "https://www.chess.com"]

[Event "Titled Tuesday Blitz November 14 Early 2023"]
[White "Arngrimsson, Dagur"]
[Black "Kraus, Tomas"]
[WhiteFideId "2301288"]
[BlackFideId "331708"]
[WhiteElo "2550"]
[BlackElo "2303"]
[Result "0-1"]
[Round "3"]
[TimeControl "180+1"]
[Date "2023.11.14"]
[WhiteClock "0:00:20"]
[BlackClock "0:00:38"]
[Board "159"]

1. e4 {[%clk 0:02:16]}  e6 {[%clk 0:02:57]} 2. b3 {[%clk 0:02:11]}  d5 {[%clk 0:02:58]} 3. Bb2 {[%clk 0:02:08]}  dxe4 {[%clk 0:02:56]} 4. Nc3 {[%clk 0:02:06]}  Nf6 {[%clk 0:02:56]} 5. Qe2 {[%clk 0:02:05]}  Be7 {[%clk 0:02:51]} 6. O-O-O {[%clk 0:02:04]}  O-O {[%clk 0:02:50]} 7. Nxe4 {[%clk 0:02:02]}  a5 {[%clk 0:02:43]} 8. a4 {[%clk 0:01:54]}  Nc6 {[%clk 0:02:33]} 9. Nf3 {[%clk 0:01:45]}  Nxe4 {[%clk 0:02:33]} 10. Qxe4 {[%clk 0:01:44]}  Bf6 {[%clk 0:02:33]} 11. d4 {[%clk 0:01:44]}  Qd5 {[%clk 0:02:28]} 12. Bd3 {[%clk 0:01:43]}  Qxe4 {[%clk 0:02:24]} 13. Bxe4 {[%clk 0:01:44]}  Rd8 {[%clk 0:02:17]} 14. Rhe1 {[%clk 0:01:11]}  Ne7 {[%clk 0:02:15]} 15. Kb1 {[%clk 0:00:28]}  Rb8 {[%clk 0:02:09]} 16. h4 {[%clk 0:00:29]}  g6 {[%clk 0:01:55]} 17. g3 {[%clk 0:00:28]}  Bd7 {[%clk 0:01:55]} 18. Bd3 {[%clk 0:00:28]}  Bc6 {[%clk 0:01:55]} 19. Ne5 {[%clk 0:00:27]}  Bxe5 {[%clk 0:01:49]} 20. dxe5 {[%clk 0:00:28]}  Nd5 {[%clk 0:01:45]} 21. h5 {[%clk 0:00:27]}  Nb4 {[%clk 0:01:43]} 22. Bc4 {[%clk 0:00:27]}  Bd5 {[%clk 0:01:37]} 23. Be2 {[%clk 0:00:25]}  Be4 {[%clk 0:01:35]} 24. Rc1 {[%clk 0:00:23]}  Rd2 {[%clk 0:01:27]} 25. Bd1 {[%clk 0:00:23]}  Bc6 {[%clk 0:01:16]} 26. Bc3 {[%clk 0:00:22]}  Rxf2 {[%clk 0:01:14]} 27. Bxb4 {[%clk 0:00:21]}  axb4 {[%clk 0:01:15]} 28. hxg6 {[%clk 0:00:21]}  hxg6 {[%clk 0:01:15]} 29. Be2 {[%clk 0:00:19]}  Kg7 {[%clk 0:01:13]} 30. Rcd1 {[%clk 0:00:17]}  Bd5 {[%clk 0:01:11]} 31. Rd4 {[%clk 0:00:18]}  c5 {[%clk 0:01:10]} 32. Rf4 {[%clk 0:00:18]}  Rxf4 {[%clk 0:01:08]} 33. gxf4 {[%clk 0:00:19]}  Rh8 {[%clk 0:01:07]} 34. f5 {[%clk 0:00:18]}  gxf5 {[%clk 0:01:05]} 35. Rg1+ {[%clk 0:00:19]}  Kf8 {[%clk 0:01:06]} 36. Bd3 {[%clk 0:00:19]}  Rh2 {[%clk 0:01:05]} 37. a5 {[%clk 0:00:19]}  Rh3 {[%clk 0:00:56]} 38. Kb2 {[%clk 0:00:18]}  Rh1 {[%clk 0:00:53]} 39. Rg3 {[%clk 0:00:17]}  Re1 {[%clk 0:00:51]} 40. Rh3 {[%clk 0:00:16]}  Rxe5 {[%clk 0:00:48]} 41. Rh8+ {[%clk 0:00:17]}  Ke7 {[%clk 0:00:49]} 42. Rb8 {[%clk 0:00:18]}  f4 {[%clk 0:00:48]} 43. Bc4 {[%clk 0:00:17]}  Bc6 {[%clk 0:00:47]} 44. Bd3 {[%clk 0:00:18]}  f3 {[%clk 0:00:46]} 45. Bb5 {[%clk 0:00:19]}  Bxb5 {[%clk 0:00:44]} 46. Rxb7+ {[%clk 0:00:20]}  Bd7 {[%clk 0:00:44]} 47. a6 {[%clk 0:00:20]}  c4 {[%clk 0:00:43]} 48. bxc4 {[%clk 0:00:20]}  Ra5 {[%clk 0:00:43]} 49. a7 {[%clk 0:00:20]}  f2 {[%clk 0:00:43]} 50. c5 {[%clk 0:00:20]}  f1=Q {[%clk 0:00:38]} 51. c6 {[%clk 0:00:20]}  Qa1+ {[%clk 0:00:38]} 52. Kb3 {[%clk 0:00:20]}  Qc3# {[%clk 0:00:38]} 0-1


[Site "https://www.chess.com"]

[Event "Titled Tuesday Blitz November 14 Early 2023"]
[White "Santos Flores, Alberto"]
[Black "alfianasybullina"]
[WhiteFideId "3601234"]
[WhiteElo "2547"]
[BlackElo "2274"]
[Result "1-0"]
[Round "3"]
[TimeControl "180+1"]
[Date "2023.11.14"]
[WhiteClock "0:00:12"]
[BlackClock "0:00:31"]
[Board "160"]

1. e4 {[%clk 0:03:00]}  c6 {[%clk 0:02:58]} 2. c4 {[%clk 0:03:00]}  d5 {[%clk 0:02:58]} 3. exd5 {[%clk 0:03:01]}  cxd5 {[%clk 0:02:59]} 4. cxd5 {[%clk 0:03:02]}  Nf6 {[%clk 0:02:59]} 5. Qa4+ {[%clk 0:03:02]}  Nbd7 {[%clk 0:02:54]} 6. Bc4 {[%clk 0:03:02]}  g6 {[%clk 0:02:47]} 7. Nc3 {[%clk 0:03:01]}  Bg7 {[%clk 0:02:47]} 8. Nf3 {[%clk 0:03:02]}  O-O {[%clk 0:02:48]} 9. d3 {[%clk 0:03:02]}  a6 {[%clk 0:02:43]} 10. Qa3 {[%clk 0:03:02]}  Nb6 {[%clk 0:02:30]} 11. Qb3 {[%clk 0:03:02]}  Nxc4 {[%clk 0:02:19]} 12. dxc4 {[%clk 0:03:02]}  b5 {[%clk 0:02:19]} 13. cxb5 {[%clk 0:02:59]}  axb5 {[%clk 0:02:19]} 14. O-O {[%clk 0:02:58]}  b4 {[%clk 0:02:08]} 15. Qxb4 {[%clk 0:02:58]}  Nxd5 {[%clk 0:02:08]} 16. Nxd5 {[%clk 0:02:56]}  Qxd5 {[%clk 0:02:09]} 17. Qxe7 {[%clk 0:02:56]}  Rxa2 {[%clk 0:01:59]} 18. Rxa2 {[%clk 0:02:51]}  Qxa2 {[%clk 0:02:00]} 19. Qa3 {[%clk 0:02:38]}  Qd5 {[%clk 0:01:54]} 20. Bf4 {[%clk 0:02:25]}  Bb7 {[%clk 0:01:54]} 21. b4 {[%clk 0:02:19]}  h6 {[%clk 0:01:45]} 22. Bg3 {[%clk 0:02:18]}  Rc8 {[%clk 0:01:36]} 23. Re1 {[%clk 0:01:59]}  Rc3 {[%clk 0:01:34]} 24. Qa7 {[%clk 0:01:28]}  Rxf3 {[%clk 0:01:27]} 25. gxf3 {[%clk 0:01:27]}  Qxf3 {[%clk 0:01:28]} 26. Kf1 {[%clk 0:00:59]}  Bc3 {[%clk 0:01:15]} 27. Qb8+ {[%clk 0:00:47]}  Kh7 {[%clk 0:01:13]} 28. Rc1 {[%clk 0:00:15]}  Bxb4 {[%clk 0:01:12]} 29. Be5 {[%clk 0:00:14]}  Qg2+ {[%clk 0:01:01]} 30. Ke2 {[%clk 0:00:14]}  Ba6+ {[%clk 0:01:01]} 31. Ke3 {[%clk 0:00:11]}  Qh3+ {[%clk 0:00:41]} 32. f3 {[%clk 0:00:11]}  g5 {[%clk 0:00:32]} 33. Qh8+ {[%clk 0:00:11]}  Kg6 {[%clk 0:00:32]} 34. Rc6+ {[%clk 0:00:12]}  Kh5 {[%clk 0:00:31]} 35. Rxh6# {[%clk 0:00:12]} 1-0


[Site "https://www.chess.com"]